Cogmind - Beta 13 @@@ ROGUE MODE // 2024.07.05 @ 21:47:10 Player: ThatBishHoly Result: Destroyed by Y-45 Defender with Heavy Assault Rifle Performance ------------- Evolutions (1) 500 Regions Visited (2) 400 Robots Destroyed (18) 90 Value Destroyed (355) 355 Prototype IDs (2) 40 Alien Tech Used (0) 0 Bonus (0) 0 TOTAL SCORE: 1385 Bonus ------- None Cogmind --------- Core Integrity 0/400 Matter 158/300 Energy 84/100 System Corruption 1% Temperature Cool (27) Movement Core (100) Ox1 Location -9/Materials Parts ------- > --- POWER (1) -------- (None) > --- PROPULSION (3) --- (None) > --- UTILITY (3) ------ Visual Processing Unit Improved Targeting Computer > --- WEAPON (2) ------- Beam Cannon Flail > --- INVENTORY (5) ---- Datajack Peak State ------------ > --- POWER ------------ Improved Ion Engine > --- PROPULSION ------- Aluminum Leg Aluminum Leg > --- UTILITY ---------- Visual Processing Unit Improved Targeting Computer High-powered Tractor Beam > --- WEAPON ----------- Grenade Launcher Flail > --- INVENTORY -------- Beam Cannon Flail [Rating: 13] Favorites ----------- Power Improved Ion Engine Engine Improved Ion Engine Propulsion Aluminum Leg Leg Aluminum Leg Utility Improved Targeting Computer Device High-powered Tractor Beam Processor Improved Targeting Computer Weapon Flail Energy Gun Medium Laser Energy Cannon Beam Cannon Ballistic Gun Light Assault Rifle Launcher Grenade Launcher Impact Weapon Flail Build | -11 -10 -9 ------- Run | Yrd Mat Mat Slots Evolved 2 | . . 2 Power . | . . . Propulsion 1 | . . 1 Utility 1 | . . 1 Weapon . | . . . Parts Attached 15 | 5 5 5 Power 2 | 1 1 . Engine 2 | 1 1 . Core . | . . . Reactor . | . . . Propulsion 2 | 2 . . Treads . | . . . Leg 2 | 2 . . Wheel . | . . . Hover . | . . . Flight . | . . . Utility 3 | . 1 2 Device 1 | . . 1 Storage . | . . . Processor 2 | . 1 1 Hackware . | . . . Protection . | . . . Artifact . | . . . Weapon 8 | 2 3 3 Energy Gun 1 | 1 . . Energy Cannon 1 | . . 1 Ballistic Gun 2 | 1 1 . Ballistic Cannon . | . . . Launcher 2 | . 1 1 Special Weapon . | . . . Impact Weapon 2 | . 1 1 Slashing Weapon . | . . . Piercing Weapon . | . . . Special Melee Weapon . | . . . Unidentified Prototypes . | . . . Parts Lost 6 | . . 6 Power 1 | . . 1 Propulsion 2 | . . 2 Utility 1 | . . 1 Weapon 2 | . . 2 Highest Loss Streak 5 | . . 5 To Critical Strikes . | . . . Average Slot Usage (%) 78 | . 83 67 Engine 12 | . 14 9 Leg 25 | . 28 19 Processor 13 | . 12 16 Ballistic Gun 1 | . 2 . Launcher 11 | . 11 9 Impact Weapon 12 | . 12 11 Naked Turns . | . . . Heaviest Build 13 | 8 12 13 Greatest Support 20 | 20 20 20 Greatest Overweight (x) 1 | . . 1 Average Overweight (x) . | . . . Largest Inventory Capacity 5 | 5 5 5 Average Capacity 5 | 5 5 5 Most Carried 5 | 2 5 4 Average Carried 2 | . 3 2 Final Capacity 5 | 5 5 5 Final Carried 3 | . 3 1 Class Distribution -------------------- 100% | Mutant Dominant Class ---------------- Mutant | -10/Materials Mutant | -9/Materials Resources | -11 -10 -9 ----------- Run | Yrd Mat Mat Matter Collected 381 | 147 179 55 Remotely 24 | . . 24 Salvage Created 205 | . 47 158 Parts 28 | . 3 25 Haulers Intercepted 1 | . . 1 Recyclers Shooed 1 | . 1 . Parts Field Recycled . | . . . Retrieved Matter . | . . . Parts Self-Destructed . | . . . Prevented . | . . . Kills | -11 -10 -9 ------- Run | Yrd Mat Mat Combat Hostiles Destroyed 9 | . 2 7 Melee 1 | . 1 . Cannons 1 | . . 1 AOE 7 | . 1 6 Classes Destroyed 7 | . 3 4 Worker 2 | . . 2 Builder 2 | . 1 1 Hauler 1 | . . 1 Watcher 4 | . 1 3 Swarmer 6 | . 2 4 Duelist 1 | . . 1 Sentry 2 | . . 2 Best Kill Streak 5 | . 2 5 Combat Bots Only 4 | . 1 4 Max Kills in Single Turn 3 | . 2 3 Gunslinging . | . . . Exploded 3 | . 1 3 Melee 1 | . 1 . Uniques/NPCs Destroyed . | . . . Combat | -11 -10 -9 -------- Run | Yrd Mat Mat Hostile Shots Fired 80 | . 17 63 Missed 27 | . 7 20 Damage Taken 936 | . 113 823 Core 419 | . 7 412 Absorbed by Shields . | . . . Core Remaining (%) 98 | 100 97 . Volleys Fired 22 | . 3 19 Largest 1 | . 1 1 Hottest 60 | . 30 60 Shots Fired 22 | . 3 19 Gun . | . . . Cannon 3 | . . 3 Launcher 19 | . 3 16 Special . | . . . Kinetic . | . . . Thermal 3 | . . 3 Explosive 19 | . 3 16 Electromagnetic . | . . . Robot Hit Streak 17 | . 2 17 Robot Miss Streak 1 | . . 1 Penetration Max . | . . . Secondary Targets . | . . . Shots Hit Robots 23 | . 5 18 Core Hits 28 | . 3 25 Critical Kills . | . . . Critical Parts Destroyed 1 | . 1 . Critical Strikes 2 | . 1 1 Smash 2 | . 1 1 Melee Attacks 11 | . 8 3 Impact 11 | . 8 3 Slashing . | . . . Piercing . | . . . Sneak Attacks 1 | . 1 . Combat Hostiles . | . . . Follow-up Attacks . | . . . Damage Inflicted 1266 | . 258 1008 Guns . | . . . Cannons 54 | . . 54 Explosions 1032 | . 101 931 Melee 180 | . 157 23 Ramming . | . . . Kinetic . | . . . Thermal 54 | . . 54 Explosive 1032 | . 101 931 Electromagnetic . | . . . Impact 180 | . 157 23 Slashing . | . . . Piercing . | . . . Highest Corruption 1 | . 1 1 Average Corruption 1 | . 1 1 Corruption Purged . | . . . Corruption Blocked . | . . . Effects 2 | . 1 1 Matter Fused 2 | . 1 1 Overload Shots . | . . . Overflow Damage 118 | . 105 13 Projectiles . | . . . Explosions 19 | . 6 13 Melee 99 | . 99 . Knockbacks 1 | . 1 . Impact 1 | . 1 . Kinetic . | . . . Secondary . | . . . Self-Inflicted Damage 222 | . 30 192 Shots 9 | . 2 7 Rammed . | . . . Targets Rammed . | . . . Kicked . | . . . Crushed . | . . . Highest Temperature 66 | . . 66 Average Temperature 20 | . . 20 Received Heat Transfer 264 | . . 264 Siege Activations . | . . . Robots Corrupted . | . . . Combat Hostiles . | . . . Parts Fried 2 | . 2 . Impact Corruptions 4 | . 4 . Robots Melted . | . . . Combat Hostiles . | . . . Parts Melted . | . . . Heat Transferred 111 | . . 111 Parts Sabotaged . | . . . Parts Stolen . | . . . Parts Stripped . | . . . Power Chain Reactions . | . . . Alert | -11 -10 -9 ------- Run | Yrd Mat Mat Peak Influence 370 | . 146 370 Initial . | . . . Average 98 | . 56 216 Maximum Alert Level 1 | . . 1 Low Security (%) 78 | 100 100 25 Level 1 21 | . . 74 Level 2 . | . . . Level 3 . | . . . Level 4 . | . . . Level 5 . | . . . High Security . | . . . Max Security . | . . . Squads Dispatched 2 | . . 2 Investigation . | . . . Extermination . | . . . Reinforcement 2 | . . 2 Assault . | . . . Garrison . | . . . Intercept . | . . . Searches Triggered . | . . . Construction Impeded 1 | . . 1 Haulers Reinforced . | . . . Active Scanning Responses . | . . . Cargo Convoy Interrupts . | . . . Stealth | -11 -10 -9 --------- Run | Yrd Mat Mat Distress Signals 4 | . 1 3 Communications Jammed . | . . . Distress Signals . | . . . Times Spotted 20 | . 7 13 Peak Tracking Total 6 | . 3 6 Tactical Retreats 1 | . 1 . Traps | -11 -10 -9 ------- Run | Yrd Mat Mat Traps Triggered . | . . . Indirectly . | . . . Trap Hack Attempts . | . . . Triggered . | . . . Disarmed 4 | . 4 . Reprogrammed . | . . . Reused . | . . . Traps Extracted . | . . . Installed . | . . . Triggered . | . . . Machines | -11 -10 -9 ---------- Run | Yrd Mat Mat Machines Disabled 8 | . 1 7 Max in Single Turn 4 | . 1 4 Machines Repaired . | . . . Machines Dismantled . | . . . Machines Sabotaged . | . . . Overloaded Fab Kills . | . . . Hacking | -11 -10 -9 --------- Run | Yrd Mat Mat Machines Accessed 6 | . 4 2 Terminals 5 | . 3 2 Fabricators . | . . . Repair Stations . | . . . Recycling Units 1 | . 1 . Scanalyzers . | . . . Garrison Access . | . . . Total Hacks 19 | . 13 6 Successful 11 | . 8 3 Failed 8 | . 5 3 Catastrophic 1 | . 1 . Database Lockouts . | . . . Manual . | . . . Terminals 15 | . 9 6 Fabricators . | . . . Repair Stations . | . . . Recycling Units 4 | . 4 . Scanalyzers . | . . . Garrison Access . | . . . Terminal Hacks 9 | . 6 3 Record 1 | . 1 . Prototype ID Bank 1 | . 1 . Locate Traps 1 | . 1 . Disarm Traps 1 | . 1 . Reinforcement Status 1 | . . 1 Recall Reinforcements 1 | . . 1 Zone Layout 3 | . 2 1 Fabricator Hacks . | . . . Repair Station Hacks . | . . . Recycling Unit Hacks 2 | . 2 . Report Inventory 1 | . 1 . Retrieve Components 1 | . 1 . Scanalyzer . | . . . Garrison Access Hacks . | . . . Unauthorized Hacks . | . . . Terminals . | . . . Fabricators . | . . . Repair Stations . | . . . Recycling Units . | . . . Scanalyzers . | . . . Garrison Access . | . . . Data Cores Recovered . | . . . Used . | . . . Hacking Detections 5 | . 4 1 Full Trace Events 4 | . 3 1 Feedback Events 2 | . 1 1 Corruption 2 | . 1 1 Feedback Blocked . | . . . Robot Schematics Acquired . | . . . Robots Built . | . . . Authchips . | . . . Time . | . . . Total Robot Build Rating . | . . . Part Schematics Acquired . | . . . Parts Built . | . . . Authchips . | . . . Time . | . . . Total Part Build Rating . | . . . Parts Repaired . | . . . Time . | . . . Parts Recycled . | . . . Recycled Matter . | . . . Retrieved Matter . | . . . Retrieved Components 3 | . 3 . Parts Scanalyzed . | . . . Part Schematics Acquired . | . . . Parts Damaged . | . . . Bothacking | -11 -10 -9 ------------ Run | Yrd Mat Mat Used RIF Installer . | . . . Robots Hacked . | . . . Non-combat . | . . . Combat . | . . . Robot Hacks Applied . | . . . Relay Couplers Released . | . . . Fabnet Peak Effective % . | . . . Robots Rewired . | . . . Allies Hacked . | . . . Hacks Repelled . | . . . Allies | -11 -10 -9 -------- Run | Yrd Mat Mat Total Allies . | . . . Largest Group . | . . . Highest-Rated Group . | . . . Highest-Rated Ally . | . . . Total Orders . | . . . Ally Attacks . | . . . Total Damage . | . . . Kills . | . . . Allies Corrupted . | . . . Allies Melted . | . . . Intel | -11 -10 -9 ------- Run | Yrd Mat Mat Robot Analysis Total . | . . . Derelict Logs Recovered . | . . . Drone Launches . | . . . Drone Recoveries . | . . . Exploration | -11 -10 -9 ------------- Run | Yrd Mat Mat Turns Passed 644 | 46 410 188 Spaces Moved 367 | 34 226 107 Core 12 | 7 . 5 Treads . | . . . Legs 355 | 27 226 102 Wheels . | . . . Hover . | . . . Flight . | . . . Fastest Speed 50 | 50 120 100 Average Speed 118 | 105 120 121 Slowest Speed 190 | 120 120 190 Overloaded Moves . | . . . Propulsion Burnouts . | . . . Robots Hopped . | . . . Cave-ins Triggered . | . . . Exploration Rate (%) 20 | 3 38 19 Regions Visited 2 Branch Regions . Pre-discovered Areas . | . . . Known Exits Taken . | . . . Unknown Exits Taken 2 | 1 1 . Scrap Searched . | . . . Spaces Dug 7 | . 7 . Terrain Destroyed 108 | . 19 89 Melee . | . . . Projectile . | . . . AOE 108 | . 19 89 Terrain Rammed . | . . . Walls Destroyed . | . . . Machines Disabled . | . . . Actions | -11 -10 -9 --------- Run | Yrd Mat Mat Total 536 | 44 350 142 Wait 104 | 1 98 5 Move 365 | 33 225 107 Hop . | . . . Pick Up 15 | 5 7 3 Fast Attach . | . . . Attach 12 | 5 2 5 Detach 1 | . 1 . Swap 3 | . 3 . Drop 3 | . 3 . Fire 22 | . 3 19 Melee 11 | . 8 3 Ram . | . . . Kick . | . . . Crush . | . . . Escape Stasis . | . . . Rewire . | . . . Trap . | . . . Miscellaneous . | . . . Route ------- -11/Scrapyard -10/Materials -9/Materials (discovered 1 exit: [*Min]) History --------- Turn | Location | Event 20 | -11/Scrapyard | Discovered new exit (range 16) 47 | -11/Scrapyard | Entered Materials 310 | -10/Materials | Build established: Mutant 433 | -10/Materials | Discovered new exit (range 13) 457 | -10/Materials | Entered another Materials area 457 | -9/Materials | Evolved 2 slots: Propulsion x1, Utility x1 511 | -9/Materials | Discovered new exit (range 16) 624 | -9/Materials | Core integrity fell below 50% 637 | -9/Materials | Core integrity fell below 20% 645 | -9/Materials | Destroyed by Y-45 Defender with Heavy Assault Rifle Last Messages --------------- 00614_ The unstable cave ceiling collapses. 00618_ U-05 Engineer builds a Wall. 00619_ Hpw. Tractor Beam destroyed. 00619_ Destroyed Hpw. Tractor Beam. 00621_ The unstable cave ceiling collapses. 00622_ Aluminum Leg destroyed. 00623_ ALERT: Construction progress impeded, dispatching reinforcements to local area. 00624_ Grenade Launcher destroyed. 00625_ L-31 Rogue suffers critical hit (Smash). 00627_ The unstable cave ceiling collapses. 00629_ Imp. Ion Engine destroyed. 00631_ K-01 Serf collects debris. 00632_ Critical hit (Burn: +37). 00632_ Flail severed. 00636_ L-31 Rogue destroyed. 00637_ The unstable cave ceiling collapses. 00639_ Critical hit (Burn: +37). 00645_ The unstable cave ceiling collapses. 00645_ Critical hit (Burn: +37). Map ----- +----------------------------------------------------+ | ?????????????????????????????????????????????????? | | ?????????????????????????????????????????????????? | | ?????????????????????????????????????????????????? | | ?????????????????????????????????????????????????? | | ?????????????????????????????????????????????????? | | ?????????????????????????????????????????????????? | | ?????????????????????????????????????????????????? | | ?????????????????????????????????????????????????? | | ????????????????# ???????????????????????????????? | | ????????????????# ???????????????????????????????? | | ????????????????# ??? ???????????????????????????? | | ?????????"??????# ?" ???????????????????????????? | | ?????????? ????# """ ???????????????????????????? | | ???????????"????# """????????????????????????????? | | ???????????# ???# """????????????????????????????? | | ???????????# ??# " ????????????????????????????? | | ???????????# ## ????????????????????????????? | | ???????????#!* # ????????????????????????????? | | ???????????#%! # ??????????????????????????"?? | | ???????????#!! # #######?????????????????????? ""? | | ???????????# #????????????????????? ? | | ???????????# Y ####???############### | | ???????????# = g / ##??????# # """ | | ???????????# *# % # #??????# """ """ # """ | | ???????????# ######### """ """ # """ | | ???????????# g @ + """ """ # | | ??????? # ######### ! + | | ??????# ?#### # # # ##????# * = # | | ???? """??# ] #????# # | | ???? ""???# " #????# "T" = # | | ???? ? "????# """ """ T" #????######### # | | ?????????????? + """ """ "" #????# """ # | | ?????????????? # """ """ #????# """ | | ???????????????# #????# """ | | ???????????????#######/#######????# | | ????????????????????? #????????#"" | | ????????????????????? #????????#"T | | ????????????????????? < #????????#"" # | | ????????????????????? #????????# # ## | | ????????????????????? #????????########### #? | | ?????????????????????#+#######???????######## #? | | ????????????????????? #???????# = # #? | | ?????????????????????""" """ #???????# + #? | | ?????????????????????""" """ #???????# """# #? | | ?????????????????????""" """ #???????# """# #? | | ?????????????????????""" """ #???????# """# ## | | ????????????????????? #???????# # | | ????????????????????? #???????######## | | ????????????????????? #??????????????# | | ?????????????????????#########?????????????#####+# | +----------------------------------------------------+ Best States ------------- Heat Dissipation 28 Energy Generation 12 Energy Capacity 265 Matter Stores 300 Matter Capacity 300 Sight Range 18 Terrain Scan Density 10 Evasion (%) 55 Targeting Accuracy 6 Item Schematics ----------------- None Robot Schematics ------------------ None Fabricated ------------ Nothing Alien Tech Used ----------------- None Achievements -------------- GoHome() Challenges ------------ None Game ------ Seed TransmissionCannonReplicator Manual? 0 Play Time 00:12:32 Cumulative 24.1 hours Start 2024.07.05 @ 20:19:31 End 2024.07.05 @ 21:47:10 Sessions 1 Manual Loads 0 Difficulty Rogue Special Mode None Game No. 71 Rogue 71 Adventurer 0 Explorer 0 Win Type - Total 0 Types 0/0/0/0/0/0/0/0/0 Lore% 16 Gallery% 31 Achievement% 23 Wizard Run 0 Options --------- Layout 1 ASCII 0 Keyboard 0 Movement Mouse Keybinds 0 Fullscreen 1 Font 48/Smallcaps Map View 25x17 Zoom Use 100% Tactical HUD 1 Map Filters NONE Filters NONE Steam 1 RUN: 86e4eab2-d249-49c9-a1ae-446331e5e402